[Event "Hector S Nazzari Memorial 2019"]
[Site "Montevideo"]
[Date "2019.10.19"]
[Round "6.10"]
[White "Avedisian, Alexander"]
[Black "Granara Barreto, Sebastian"]
[Result "0-1"]
[ECO "A00"]
[WhiteElo "1877"]
[BlackElo "2134"]
[Annotator "RC"]
[PlyCount "68"]
[EventDate "2019.10.14"]
[EventType "swiss"]
[EventCountry "URU"]
[SourceTitle "playchess.com"]
[Source "ChessBase"]
[SourceQuality "1"]
[TimeControl "5400+30"]

1. g3 {[%emt 0:03:14]} e5 {[%emt 0:00:34]} 2. c4 {[%emt 0:00:07]} Nf6 {[%emt 0:00:05]} 3. Bg2 {[%emt 0:00:07]} d5 {[%emt 0:00:06]} 4. cxd5 {[%emt 0:00:06]} Nxd5 {[%emt 0:00:04]} 5. Nc3 {[%emt 0:00:12]} Nb6 {[%emt 0:00:04]} 6. a3 {[%emt 0:00:14]} Be7 {[%emt 0:00:11]} 7. Nh3 {[%emt 0:00:13]} Nc6 {[%emt 0:01:08]} 8. O-O {[%emt 0:00:30]} Be6 {[%emt 0:03:05]} 9. d3 {[%emt 0:00:10]} h6 {[%emt 0:00:59]} 10. f4 {[%emt 0:00:39]} Qd7 {[%emt 0:04:25]} 11. Nf2 {[%emt 0:01:02]} O-O-O {[%emt 0:00:41]} 12. b4 {[%emt 0:05:19]} exf4 {[%emt 0:02:29]} 13. Bxf4 {[%emt 0:00:22]} g5 {[%emt 0:05:38]} 14. Be3 {[%emt 0:03:37]} f5 {[%emt 0:00:14]} 15. Bxb6 {[%emt 0:02:47]} cxb6 {[%emt 0:03:35]} 16. Qa4 {[%emt 0:01:04]} Kb8 {[%emt 0:00:29]} 17. Rac1 {[%emt 0:08:37]} Nd4 {[%emt 0:07:31]} 18. Qd1 {[%emt 0:01:47]} g4 {[%emt 0:05:55]} 19. e3 {[%emt 0:11:37]} Bb3 {[%emt 0:07:52]} 20. Qe1 {[%emt 0:00:21]} Nf3+ {[%emt 0:02:28]} 21. Bxf3 {[%emt 0:00:10]} gxf3 {[%emt 0:00:03]} 22. Nb1 {[%emt 0:04:26]} Bg5 {[%emt 0:02:30]} 23. Rc3 {[%emt 0:04:14]} Bd5 {[%emt 0:02:59]} 24. Nh3 {[%emt 0:10:12]} f4 {[%emt 0:06:19]} 25. Nxg5 {[%emt 0:02:07]} hxg5 {[%emt 0:00:17]} 26. e4 {[%emt 0:01:14]} Rxh2 {[%emt 0:05:07]} 27. Rf2 {[%emt 0:08:45]} fxg3 {[%emt 0:07:41]} 28. Rxh2 {[%emt 0:00:24]} gxh2+ {[%emt 0:00:04]} 29. Kh1 {[%emt 0:00:27]} Qg4 {[%emt 0:12:35]} 30. Rc2 {[%emt 0:03:02]} f2 {[%emt 0:12:12]} 31. Qxf2 {[%emt 0:07:01]} Bxe4+ {[%emt 0:00:06]} 32. dxe4 {[%emt 0:00:07]} Rd1+ {[%emt 0:00:04]} 33. Kxh2 {[%emt 0:00:22]} Qh5+ {[%emt 0:00:06]} 34. Kg3 {[%emt 0:00:09]} Rd3+ 0-1

[Event "Hector S Nazzari Memorial 2019"]
[Site "Montevideo"]
[Date "2019.10.19"]
[Round "6.12"]
[White "Belistri, Ubaldo"]
[Black "Soto, Nicolas"]
[Result "1/2-1/2"]
[ECO "A12"]
[WhiteElo "1853"]
[BlackElo "2013"]
[Annotator "NA RC"]
[PlyCount "84"]
[EventDate "2019.10.14"]
[EventType "swiss"]
[EventCountry "URU"]
[SourceTitle "playchess.com"]
[Source "ChessBase"]
[SourceQuality "1"]
[TimeControl "5400+30"]

1. Nf3 {[%emt 0:00:00]} d5 {[%emt 0:00:26]} 2. c4 {[%emt 0:00:05]} c6 {[%emt 0:00:40]} 3. b3 {[%emt 0:02:00]} Bf5 {[%emt 0:02:17]} 4. Bb2 {[%emt 0:01:09]} Nd7 {[%emt 0:00:56]} 5. g3 {[%emt 0:01:24]} Ngf6 {[%emt 0:00:33]} 6. Bg2 {[%emt 0:00:10]} h6 {[%emt 0:04:53]} 7. O-O {[%emt 0:01:16]} e6 {[%emt 0:00:09]} 8. d3 {[%emt 0:04:34]} Be7 {[%emt 0:01:25]} 9. Nbd2 {[%emt 0:00:20]} O-O {[%emt 0:00:25]} 10. Rc1 {[%emt 0:01:07]} Qa5 {[%emt 0:07:42] A12: English Opening: 1...c6 with b3 by White} (10... a5 11. a3 Bg6 12. Rc2 b5 13. Nd4 Qb6 14. cxb5 c5 15. Nc6 Bd6 16. a4 Rfe8 17. e4 Qc7 18. Qe2 Bh5 19. Bf3 Bxf3 20. Nxf3 {1-0 (43) Howell,D (2676)-Krishna,C (2421) London 2017}) 11. a3 {[%emt 0:06:33]} Qb6 $146 {[%emt 0:06:46]} ({Predecessor:} 11... Rfc8 12. Qc2 Qd8 13. Qb1 a5 14. Qa1 Bg6 15. Rfe1 Bh7 16. Ne5 Nxe5 17. Bxe5 Qf8 18. Bb2 {½-½ (53) Vukovic,I (2034)-Mrkonjic,N (2345) Bosnjaci 2018}) 12. Qc2 {[%emt 0:03:07]} Rfd8 {[%emt 0:04:09]} 13. h3 Bh7 {[%emt 0:04:12]} 14. Qc3 {[%emt 0:17:25]} Nh5 {[%emt 0:06:12]} 15. Kh2 {[%emt 0:01:24]} Bf6 {[%emt 0:00:11]} 16. Qc2 {[%emt 0:01:55]} Bxb2 {[%emt 0:04:19]} 17. Qxb2 {[%emt 0:00:03]} Rac8 {[%emt 0:00:45]} 18. Qc3 {[%emt 0:01:26]} Nhf6 {[%emt 0:00:59]} 19. b4 {[%emt 0:05:16]} a6 {[%emt 0:00:54]} 20. e3 {[%emt 0:02:54]} Re8 {[%emt 0:01:02]} 21. c5 {[%emt 0:14:29]} Qc7 {[%emt 0:00:42]} 22. d4 {[%emt 0:00:12]} e5 {[%emt 0:06:13]} 23. Nxe5 {[%emt 0:00:57]} Nxe5 {[%emt 0:00:11]} 24. dxe5 {[%emt 0:00:13]} Qxe5 {[%emt 0:00:06]} 25. Qxe5 {[%emt 0:02:10]} Rxe5 {[%emt 0:00:03]} 26. Nf3 {[%emt 0:01:27]} Re7 {[%emt 0:00:14]} 27. Nd4 {[%emt 0:00:09]} Rce8 {[%emt 0:01:29]} 28. Rc3 {[%emt 0:01:36]} Ne4 {[%emt 0:01:53]} 29. Bxe4 {[%emt 0:00:19]} Rxe4 {[%emt 0:01:29]} 30. a4 {[%emt 0:01:16]} g5 {[%emt 0:01:41]} 31. b5 {[%emt 0:00:23]} axb5 {[%emt 0:07:45]} 32. axb5 {[%emt 0:00:02]} cxb5 {[%emt 0:00:54]} 33. Nxb5 {[%emt 0:00:04]} Rb4 {[%emt 0:00:07]} 34. Nd4 {[%emt 0:01:28]} Ra8 35. Kg1 {[%emt 0:04:06]} Rc4 {[%emt 0:04:19]} 36. Rfc1 {[%emt 0:00:59]} Be4 {[%emt 0:04:27]} 37. f3 Bd3 38. g4 {[%emt 0:06:41]} Rc8 {[%emt 0:04:53]} 39. Nb3 {[%emt 0:02:14]} Rxc3 {[%emt 0:00:55]} 40. Rxc3 {[%emt 0:00:04]} Bc4 $11 {[%emt 0:01:40]} 41. Kf2 {[%emt 0:00:32]} Ra8 {[%emt 0:00:28]} 42. Nd4 {[%emt 0:00:58]} Ra2+ {[%emt 0:05:33]} 1/2-1/2

[Event "Hector S Nazzari Memorial 2019"]
[Site "Montevideo"]
[Date "2019.10.20"]
[Round "7.10"]
[White "Bustelo, Tabare"]
[Black "Belistri, Ubaldo"]
[Result "1/2-1/2"]
[ECO "B10"]
[WhiteElo "2054"]
[BlackElo "1853"]
[Annotator "NA RC"]
[PlyCount "82"]
[EventDate "2019.10.14"]
[EventType "swiss"]
[EventCountry "URU"]
[SourceTitle "playchess.com"]
[Source "ChessBase"]
[SourceQuality "1"]
[TimeControl "5400+30"]

{[%evp 33,83,0,0,-93,-93,-98,-93,-85,-67,-97,-86,-108,-46,-42,32767,32767,-137,-165,-156,-180,-220,-202,-173,-170,-172,-229,-162,-192,-204,-169,-147,32767,-219,32767,32767,-120,32767,-165,-81,-114,-108,-112,-112,-100,-109,-148,-97,-100,-75,-104,-56,-60]} 1. e4 {[%emt 0:05:38]} c6 {[%emt 0:00:00]} 2. c4 {[%emt 0:01:14]} d5 {[%emt 0:02:31]} 3. cxd5 {[%emt 0:00:15]} cxd5 {[%emt 0:00:02]} 4. exd5 {[%emt 0:00:08]} Nf6 {[%emt 0:00:28]} 5. Nc3 {[%emt 0:00:18]} Nxd5 {[%emt 0:00:23]} 6. Nf3 {[%emt 0:00:27]} Nc6 {[%emt 0:01:20]} 7. Bc4 {[%emt 0:00:40]} e6 {[%emt 0:02:49]} 8. O-O {[%emt 0:00:24]} Be7 {[%emt 0:00:37]} 9. d4 {[%emt 0:00:51]} O-O {[%emt 0:00:30]} 10. Re1 {[%emt 0:03:53]} Nxc3 {[%emt 0:08:44]} 11. bxc3 {[%emt 0:00:09]} Bf6 {[%emt 0:00:09]} 12. Bf4 {[%emt 0:02:33]} Bd7 $146 {[%emt 0:05:59] D41: Queen's Gambit Declined: Semi-Tarrasch with 5 cxd5} ({Predecessor:} 12... Ne7 13. Bd3 Bd7 14. Ne5 Bxe5 15. Bxe5 Ng6 16. Qh5 Qa5 17. Re3 f5 18. Bd6 Qxc3 19. Rd1 Qxd4 20. Bb5 Qxe3 21. fxe3 Bxb5 22. Bxf8 Rxf8 23. Rd6 f4 24. Qxb5 {1-0 (24) Christensen,B (2251)-Becker,M (2365) Odense 2012}) 13. Rb1 {[%emt 0:07:20]} Na5 {[%emt 0:05:57]} 14. Bd3 {[%emt 0:00:17]} Rc8 {[%emt 0:00:14]} 15. Qc2 {[%emt 0:03:09]} g6 {[%emt 0:03:13]} 16. Ne5 {[%emt 0:08:10]} Qe7 {[%emt 0:05:20]} 17. Nxd7 {[%emt 0:13:14]} Qxd7 {[%emt 0:00:15]} 18. Bb5 {[%emt 0:00:28]} (18. Qb2 $11 {keeps the balance.}) 18... Qxd4 $1 {[%emt 0:03:16] Double Attack, Pin} 19. Qxg6+ {[%emt 0:11:07]} hxg6 {[%emt 0:02:06]} ({Much worse is} 19... fxg6 20. cxd4 Bxd4 21. Bg3 $15) 20. cxd4 {[%emt 0:00:04]} Bxd4 {[%emt 0:01:18]} 21. Red1 {[%emt 0:01:42]} e5 {[%emt 0:06:29]} 22. Bg5 {[%emt 0:01:32]} f6 {[%emt 0:02:11]} ({Black should try} 22... Rc2 $17 23. Rd2 Rfc8) 23. Bd2 {[%emt 0:00:42]} Nc4 {[%emt 0:15:07]} 24. Bb4 {[%emt 0:05:20] [#]} Rf7 $1 {[%emt 0:01:54]} 25. Rbc1 {[%emt 0:08:43]} Rfc7 {[%emt 0:00:07]} 26. Ba4 {[%emt 0:00:25]} Kg7 {[%emt 0:02:42]} 27. Bb3 {[%emt 0:00:54]} Nb2 {[%emt 0:02:45]} 28. Rxc7+ {[%emt 0:05:20]} Rxc7 {[%emt 0:00:01]} 29. Rb1 {[%emt 0:01:31]} b6 {[%emt 0:02:34] Decoy} 30. Kf1 {[%emt 0:00:34]} a5 {[%emt 0:02:24]} 31. Ba3 {[%emt 0:01:03]} Nd3 {[%emt 0:02:25]} 32. f3 {[%emt 0:00:23]} b5 {[%emt 0:02:41]} 33. Rd1 {[%emt 0:00:45]} Nc5 {[%emt 0:01:10]} 34. Bxc5 {[%emt 0:03:53]} Rxc5 {[%emt 0:00:17]} 35. Rd2 {[%emt 0:02:39]} Kf8 {[%emt 0:01:12]} (35... a4 $142 36. Bc2 Rc3) 36. Ke2 {[%emt 0:00:29]} Ke7 {[%emt 0:00:45]} 37. h4 {[%emt 0:00:31]} f5 {[%emt 0:03:12]} 38. g4 {[%emt 0:03:28]} a4 {[%emt 0:01:57]} 39. Bd1 {[%emt 0:01:26]} fxg4 {[%emt 0:00:29]} 40. fxg4 {[%emt 0:00:13]} Kf6 {[%emt 0:00:20]} 41. Rd3 {[%emt 0:01:11]} g5 1/2-1/2

[Event "Hector S Nazzari Memorial 2019"]
[Site "Montevideo"]
[Date "2019.10.20"]
[Round "7.11"]
[White "Genta, Alejandro"]
[Black "Rodriguez Farias, Eduardo"]
[Result "0-1"]
[ECO "A58"]
[WhiteElo "2036"]
[BlackElo "1931"]
[Annotator "NA RC"]
[PlyCount "96"]
[EventDate "2019.10.14"]
[EventType "swiss"]
[EventCountry "URU"]
[SourceTitle "playchess.com"]
[Source "ChessBase"]
[SourceQuality "1"]
[TimeControl "5400+30"]

1. d4 {[%emt 0:00:21]} Nf6 {[%emt 0:00:00]} 2. c4 {[%emt 0:00:17]} c5 {[%emt 0:00:13]} 3. d5 {[%emt 0:00:10]} b5 {[%emt 0:00:07]} 4. cxb5 {[%emt 0:00:19]} a6 {[%emt 0:00:06]} 5. bxa6 {[%emt 0:00:06]} g6 {[%emt 0:00:11]} 6. Nc3 {[%emt 0:00:07] A58: Benko/Volga Gambit: Lines with 5 bxa6} Bg7 {[%emt 0:00:07]} 7. e4 {[%emt 0:00:45]} O-O {[%emt 0:01:01]} 8. Nf3 {[%emt 0:15:53]} (8. e5 Ne8 9. h4 Bxe5 10. Bh6 Bxa6 11. h5 Ng7 12. Nf3 Bxc3+ 13. bxc3 Bxf1 14. Kxf1 {1-0 (22) So,W (2780)-Duda,J (2737) chess.com INT 2018}) 8... Qa5 {[%emt 0:05:04]} 9. Bd2 {[%emt 0:08:59]} Bxa6 10. Be2 d6 {[%emt 0:03:34]} 11. O-O {[%emt 0:01:14]} Bxe2 {[%emt 0:00:07]} 12. Qxe2 {[%emt 0:00:02]} Qa6 {[%emt 0:00:11]} 13. Rfe1 {[%emt 0:01:56]} Nbd7 {[%emt 0:01:32]} 14. h3 $146 {[%emt 0:21:35]} Rfb8 {[%emt 0:05:23]} 15. Rab1 {[%emt 0:01:10]} Nb6 {[%emt 0:04:43]} 16. b4 {[%emt 0:06:47]} Qxe2 {[%emt 0:08:43]} 17. Rxe2 {[%emt 0:00:02]} cxb4 {[%emt 0:00:12]} (17... Nbd7 $15 18. b5 Ne8) 18. Rxb4 {[%emt 0:00:07]} Nfd7 {[%emt 0:00:15]} 19. Nd4 {[%emt 0:05:28]} Na4 {[%emt 0:07:30]} 20. Ncb5 {[%emt 0:14:05]} Nac5 {[%emt 0:08:03]} 21. Nc6 {[%emt 0:05:26] Double Attack} Rb7 {[%emt 0:03:02]} 22. Bg5 {[%emt 0:10:58]} Nf6 {[%emt 0:05:25]} 23. f3 {[%emt 0:00:42]} Kf8 {[%emt 0:02:18]} 24. Be3 {[%emt 0:00:42]} Nfd7 {[%emt 0:00:34]} 25. Bd4 {[%emt 0:00:53]} Bh6 {[%emt 0:06:09]} 26. Nc3 {[%emt 0:01:51]} Rc7 {[%emt 0:04:15]} 27. Rb5 {[%emt 0:01:23]} Na4 {[%emt 0:01:59]} 28. Nd1 {[%emt 0:01:43]} Ke8 {[%emt 0:05:16]} 29. g3 {[%emt 0:00:16]} e5 {[%emt 0:00:09]} 30. Be3 {[%emt 0:00:53]} Bxe3+ {[%emt 0:02:15]} 31. Rxe3 {[%emt 0:00:02]} Nac5 {[%emt 0:00:02]} 32. a3 {[%emt 0:00:27]} f5 {[%emt 0:00:29]} 33. Nf2 {[%emt 0:00:50]} Ra4 {[%emt 0:00:23]} 34. Rb4 {[%emt 0:00:14]} Ra6 {[%emt 0:00:32]} 35. g4 {[%emt 0:00:39]} f4 {[%emt 0:00:23]} 36. Rc3 {[%emt 0:00:08]} Rc8 {[%emt 0:00:26]} 37. g5 {[%emt 0:00:41]} Rca8 {[%emt 0:00:30]} 38. Ng4 {[%emt 0:01:17]} Rxa3 {[%emt 0:00:25]} 39. Rxa3 {[%emt 0:00:04]} Rxa3 {[%emt 0:00:01]} 40. Nf6+ {[%emt 0:00:24]} Nxf6 {[%emt 0:00:34]} 41. gxf6 {[%emt 0:00:01]} Rxf3 {[%emt 0:01:36]} 42. Nd8 {[%emt 0:01:23]} Nd7 $2 {[%emt 0:05:05]} (42... Kxd8 $19 43. Rb8+ {[#]} Kc7 $1 {[%mdl 512]}) 43. Rb7 $2 {[%emt 0:00:36]} (43. Nb7 $17 Nxf6 44. Nxd6+ Ke7 45. Nc4) 43... Kxd8 {[%emt 0:03:58]} 44. f7 {[%emt 0:00:21]} Nf8 {[%emt 0:00:02]} 45. Rb8+ {[%emt 0:00:33]} Ke7 {[%emt 0:00:10]} 46. Rb7+ {[%emt 0:00:35]} Kf6 $19 {[%emt 0:00:02]} 47. Rb6 {[%emt 0:00:30]} Kxf7 {[%emt 0:00:09]} 48. Rb5 Ke7 0-1

[Event "Hector S Nazzari Memorial 2019"]
[Site "Montevideo"]
[Date "2019.10.20"]
[Round "7.12"]
[White "Ramos Correa, Gabriel"]
[Black "Avedisian, Alexander"]
[Result "0-1"]
[ECO "A45"]
[WhiteElo "1889"]
[BlackElo "1877"]
[Annotator "NA RC"]
[PlyCount "66"]
[EventDate "2019.10.14"]
[EventType "swiss"]
[EventCountry "URU"]
[SourceTitle "playchess.com"]
[Source "ChessBase"]
[SourceQuality "1"]
[TimeControl "5400+30"]

1. d4 Nf6 2. Bg5 Ne4 3. Bf4 c5 {[%emt 0:00:49]} 4. d5 {[%emt 0:00:03]} Qa5+ {[%emt 0:01:34]} (4... Qb6 5. Bc1 e6 6. f3 Nd6 7. Nc3 Be7 8. e4 Bf6 9. Nge2 c4 10. Nf4 O-O 11. Qe2 Be5 12. Nd1 f5 13. dxe6 fxe4 {0-1 (25) Salgado Lopez,I (2629)-Adly,A (2626) St Petersburg 2018}) 5. Nd2 {[%emt 0:02:40]} g6 {[%emt 0:07:46]} 6. c3 {[%emt 0:03:34] A45: Trompowsky Attack} Nxd2 {[%emt 0:06:50]} 7. Qxd2 {[%emt 0:00:02]} Bg7 $146 {[%emt 0:01:29]} ({Predecessor:} 7... d6 8. e4 Nd7 9. Nf3 Bg7 10. Bh6 Bxh6 11. Qxh6 Nf6 12. Bd3 {1-0 (74) Schebler,G (2500)-Kaufeld,J (2265) Duisburg 2005}) 8. Nf3 {[%emt 0:04:59]} d6 {[%emt 0:00:34]} 9. e4 {[%emt 0:01:01]} O-O {[%emt 0:05:58]} 10. Bh6 {[%emt 0:03:03]} Bg4 {[%emt 0:03:51]} 11. Be2 {[%emt 0:01:45]} Bxf3 {[%emt 0:01:18]} 12. Bxf3 {[%emt 0:00:02]} Nd7 {[%emt 0:00:28]} 13. O-O {[%emt 0:12:28]} c4 {[%emt 0:00:32]} 14. Bxg7 {[%emt 0:03:35]} Kxg7 {[%emt 0:00:15]} 15. Qd4+ {[%emt 0:00:21]} f6 {[%emt 0:28:39]} 16. Qxc4 {[%emt 0:01:30]} Ne5 {[%emt 0:00:33]} 17. Qe2 {[%emt 0:03:14]} Qb6 {[%emt 0:03:49]} 18. b3 {[%emt 0:02:35]} f5 {[%emt 0:00:15]} (18... a5 $14) 19. exf5 {[%emt 0:02:49]} Rxf5 {[%emt 0:00:44] [#]} 20. Be4 $1 {[%emt 0:01:32]} Rf6 {[%emt 0:05:18]} 21. Kh1 {[%emt 0:06:29]} Raf8 {[%emt 0:00:40]} 22. f3 {[%emt 0:00:21]} h5 {[%emt 0:01:43]} 23. h3 {[%emt 0:15:03]} g5 {[%emt 0:01:21]} 24. Qd2 {[%emt 0:05:59]} Nf7 {[%emt 0:04:53]} 25. Bc2 {[%emt 0:05:49]} Rh8 {[%emt 0:05:11]} 26. Rae1 {[%emt 0:02:12]} Kf8 {[%emt 0:00:46]} 27. f4 {[%emt 0:06:26]} g4 {[%emt 0:00:17]} 28. h4 {[%emt 0:00:21]} g3 $18 {[%emt 0:00:58]} 29. Qe2 {[%emt 0:04:05]} Qd8 {[%emt 0:01:32]} 30. Rf3 {[%emt 0:01:05]} Rg8 {[%emt 0:01:54]} 31. Re3 {[%emt 0:01:16]} e5 {[%emt 0:06:40]} 32. dxe6 {[%emt 0:00:59]} Rxe6 {[%emt 0:02:26]} 33. Rxe6 {[%emt 0:00:19]} Qxh4+ 0-1

[Event "Hector S Nazzari Memorial 2019"]
[Site "Montevideo"]
[Date "2019.10.20"]
[Round "7.13"]
[White "Soto, Nicolas"]
[Black "Saralegui, Mario"]
[Result "1-0"]
[ECO "C77"]
[WhiteElo "2013"]
[BlackElo "2059"]
[Annotator "NA RC"]
[PlyCount "57"]
[EventDate "2019.10.14"]
[EventType "swiss"]
[EventCountry "URU"]
[SourceTitle "playchess.com"]
[Source "ChessBase"]
[SourceQuality "1"]
[TimeControl "5400+30"]

1. e4 {[%emt 0:00:15]} e5 {[%emt 0:00:00]} 2. Nf3 {[%emt 0:00:32]} Nc6 {[%emt 0:00:00]} 3. Bb5 {[%emt 0:00:07]} a6 {[%emt 0:00:00]} 4. Ba4 {[%emt 0:00:06]} Nf6 {[%emt 0:00:06]} 5. d3 {[%emt 0:00:25]} b5 {[%emt 0:00:07]} 6. Bb3 {[%emt 0:00:07]} Bc5 {[%emt 0:00:03]} 7. Nc3 {[%emt 0:01:26]} h6 {[%emt 0:00:36] C77: Ruy Lopez: 3...a6 4 Ba4 Nf6, unusual lines} 8. a4 {[%emt 0:01:46]} (8. Nd5 Rb8 9. c3 d6 10. O-O O-O 11. Be3 Nxd5 12. Bxd5 Bxe3 13. fxe3 Ne7 14. Bb3 Be6 15. Nh4 {½-½ (34) Vachier Lagrave,M (2775)-Anand,V (2764) Paris 2019}) 8... Rb8 {[%emt 0:05:17]} 9. axb5 {[%emt 0:00:31]} axb5 {[%emt 0:00:06]} 10. Be3 {[%emt 0:02:44]} Bb4 $146 {[%emt 0:03:44]} ({Predecessor:} 10... d6 11. h3 O-O 12. O-O Re8 13. Nd5 Nxd5 14. Bxd5 Ne7 15. Bxc5 dxc5 16. Nxe5 Nxd5 {1-0 (38) Naiditsch,A (2664)-Kazhgaleyev,M (2606) Venacu 2006}) 11. O-O {[%emt 0:01:42]} O-O {[%emt 0:00:11]} 12. Nd5 {[%emt 0:00:25]} Be7 {[%emt 0:00:41]} 13. h3 {[%emt 0:01:11]} d6 {[%emt 0:00:06]} 14. Qd2 {[%emt 0:09:00]} Be6 {[%emt 0:06:37]} 15. Ra6 {[%emt 0:08:10]} Bd7 {[%emt 0:05:33]} 16. Rfa1 {[%emt 0:01:51]} Re8 {[%emt 0:08:34]} 17. Qc3 {[%emt 0:00:27]} Nxd5 {[%emt 0:15:10]} 18. Bxd5 {[%emt 0:01:16]} Nd4 {[%emt 0:00:22]} 19. Nxd4 {[%emt 0:01:51]} exd4 {[%emt 0:00:10]} 20. Bxd4 {[%emt 0:00:10]} c5 {[%emt 0:10:46]} 21. Be3 {[%emt 0:01:17]} ({But not} 21. Bxg7 $6 b4 $11) 21... Bf6 {[%emt 0:04:37]} 22. Qb3 {[%emt 0:00:14]} Be6 {[%emt 0:00:07]} 23. Bf4 {[%emt 0:07:24]} c4 {[%emt 0:07:09]} 24. Qb4 {[%emt 0:00:16]} Bxd5 {[%emt 0:03:15]} 25. Rxd6 $14 {[%emt 0:06:08]} (25. exd5 $16 Be5 26. Bxe5 Rxe5 27. dxc4 (27. Rxd6 Qf8 $16)) 25... Qe7 {[%emt 0:09:47]} 26. exd5 {[%emt 0:00:05]} Bd4 {[%emt 0:01:35]} 27. c3 {[%emt 0:05:29]} Bb6 {[%emt 0:02:02]} 28. dxc4 {[%emt 0:03:22]} bxc4 {[%emt 0:01:24]} 29. Rxb6 {[%emt 0:00:11]} 1-0